fUSD/lending_fUSD_20260509
["ID","MTS","AMOUNT","RATE_DAILY","PERIOD"]
[421897834,1778308686000,-2339.6389856,0.00041995,120]
[421897832,1778308686000,-2339.45,0.00041995,120]
[421897833,1778308686000,-2339.45,0.00041995,120]
[421897831,1778308686000,-2339.45,0.00041995,120]
[421897830,1778308686000,-2339.45,0.00041995,120]
[421897836,1778308686000,-500.0,0.00041995,120]
[421897847,1778308686000,-500.0,0.00041995,30]
[421897838,1778308686000,-500.0,0.00041995,120]
[421897846,1778308686000,-500.0,0.00041995,30]
[421897848,1778308686000,-500.0,0.00041995,30]
[421897864,1778308686000,-500.0,0.00041995,120]
[421897861,1778308686000,-500.0,0.00041995,120]
[421897862,1778308686000,-500.0,0.00041995,120]
[421897860,1778308686000,-500.0,0.00041995,120]
[421897859,1778308686000,-500.0,0.00041995,120]
[421897858,1778308686000,-500.0,0.00041995,120]
[421897856,1778308686000,-500.0,0.00041995,120]
[421897863,1778308686000,-500.0,0.00041995,120]
[421897852,1778308686000,-175.27077297,0.00041995,120]
[421897855,1778308686000,-500.0,0.00041995,120]
[421897854,1778308686000,-500.0,0.00041995,120]
[421897853,1778308686000,-524.92281199,0.00041995,120]
[421897851,1778308686000,-540.68363132,0.00041995,30]
[421897850,1778308686000,-500.0,0.00041995,30]
[421897849,1778308686000,-500.0,0.00041995,30]
[421897857,1778308686000,-500.0,0.00041995,120]
[421897877,1778308687000,-500.0,0.00041995,120]
[421897874,1778308687000,-242.39979554,0.00041995,120]
[421897875,1778308687000,-500.0,0.00041995,120]
[421897873,1778308687000,-500.0,0.00041995,120]
[421897871,1778308687000,-294.16121643,0.00041995,120]
[421897870,1778308687000,-500.0,0.00041995,120]
[421897867,1778308687000,-500.0,0.00041995,120]
[421897869,1778308687000,-500.0,0.00041995,120]
[421897868,1778308687000,-633.89111395,0.00041995,120]
[421897866,1778308687000,-500.0,0.00041995,120]
[421897865,1778308687000,-165.2664,0.00041995,120]
[421897878,1778308687000,-500.0,0.00041995,120]
[421897872,1778308687000,-500.0,0.00041995,120]
[421897876,1778308687000,-500.0,0.00041995,120]
[421897881,1778308687000,-500.0,0.00041995,120]
[421897882,1778308687000,-500.0,0.00041995,120]
[421897893,1778308687000,-500.0,0.00041995,120]
[421897879,1778308687000,-318.39585897,0.00041995,120]
[421897890,1778308687000,-500.0,0.00041995,120]
[421897891,1778308687000,-500.0,0.00041995,120]
[421897889,1778308687000,-500.0,0.00041995,120]
[421897888,1778308687000,-500.0,0.00041995,120]
[421897892,1778308687000,-500.0,0.00041995,120]
[421897887,1778308687000,-506.64938862,0.00041995,120]
[421897885,1778308687000,-500.0,0.00041995,120]
[421897884,1778308687000,-500.0,0.00041995,120]
[421897883,1778308687000,-500.0,0.00041995,120]
[421897880,1778308687000,-500.0,0.00041995,120]
[421897886,1778308687000,-500.0,0.00041995,120]
[421897903,1778308688000,-2395.77,0.00041995,120]
[421897902,1778308688000,-507.61867608,0.00041995,120]
[421897901,1778308688000,-500.0,0.00041995,120]
[421897900,1778308688000,-505.66398903,0.00041995,120]
[421897899,1778308688000,-500.0,0.00041995,120]
[421897897,1778308688000,-500.0,0.00041995,120]
[421897896,1778308688000,-500.0,0.00041995,120]
[421897895,1778308688000,-215.4621242,0.00041995,120]
[421897894,1778308688000,-500.0,0.00041995,120]
[421897906,1778308688000,-2395.77,0.00041995,120]
[421897898,1778308688000,-500.0,0.00041995,120]
[421897907,1778308688000,-2395.77,0.00041995,120]
[421897905,1778308688000,-2395.77,0.00041995,120]
[421897908,1778308688000,-2395.77,0.00041995,120]
[421897904,1778308688000,-2395.77,0.00041995,120]
[421897919,1778308688000,-345.79645664,0.00041995,120]
[421897917,1778308688000,-2395.77,0.00041995,120]
[421897918,1778308688000,-500.0,0.00041995,120]
[421897914,1778308688000,-2395.77,0.00041995,120]
[421897916,1778308688000,-500.0,0.00041995,120]
[421897915,1778308688000,-2395.77,0.00041995,120]
[421897911,1778308688000,-2395.77,0.00041995,120]
[421897913,1778308688000,-2395.77,0.00041995,120]
[421897910,1778308688000,-2395.77,0.00041995,120]
[421897909,1778308688000,-2395.77,0.00041995,120]
[421897920,1778308688000,-2395.77,0.00041995,120]
[421897912,1778308688000,-2395.77,0.00041995,120]
[421897931,1778308689000,-500.0,0.00041995,120]
[421897935,1778308689000,-1528.65,0.00041995,120]
[421897934,1778308689000,-582.1437793,0.00041995,120]
[421897932,1778308689000,-500.0,0.00041995,120]
[421897930,1778308689000,-500.0,0.00041995,120]
[421897929,1778308689000,-2395.81176164,0.00041995,120]
[421897922,1778308689000,-2395.77,0.00041995,120]
[421897926,1778308689000,-2395.77,0.00041995,120]
[421897928,1778308689000,-2395.77,0.00041995,120]
[421897925,1778308689000,-2395.77,0.00041995,120]
[421897924,1778308689000,-2395.77,0.00041995,120]
[421897923,1778308689000,-2395.77,0.00041995,120]
[421897921,1778308689000,-2395.77,0.00041995,120]
[421897927,1778308689000,-2395.77,0.00041995,120]
[421897938,1778308689000,-1528.65,0.00041995,120]
[421897933,1778308689000,-500.0,0.00041995,120]
[421897937,1778308689000,-1528.65,0.00041995,120]
[421897936,1778308689000,-1528.65,0.00041995,120]
[421897953,1778308689000,-1528.65,0.00041995,120]
[421897952,1778308689000,-1528.65,0.00041995,120]
[421897950,1778308689000,-1528.65,0.00041995,120]
[421897951,1778308689000,-1528.65,0.00041995,120]
[421897947,1778308689000,-1528.65,0.00041995,120]
[421897948,1778308689000,-1528.65,0.00041995,120]
[421897949,1778308689000,-1528.65,0.00041995,120]
[421897943,1778308689000,-1528.65,0.00041995,120]
[421897944,1778308689000,-1528.65,0.00041995,120]
[421897945,1778308689000,-1528.65,0.00041995,120]
[421897942,1778308689000,-1528.65,0.00041995,120]
[421897940,1778308689000,-1528.65,0.00041995,120]
[421897941,1778308689000,-1528.65,0.00041995,120]
[421897939,1778308689000,-1528.65,0.00041995,120]
[421897946,1778308689000,-1528.65,0.00041995,120]
[421897962,1778308690000,-2397.5,0.00041995,120]
[421897968,1778308690000,-2397.5,0.00041995,120]
[421897966,1778308690000,-2397.5,0.00041995,120]
[421897963,1778308690000,-2397.5,0.00041995,120]
[421897965,1778308690000,-2397.5,0.00041995,120]
[421897964,1778308690000,-2397.5,0.00041995,120]
[421897959,1778308690000,-2397.5,0.00041995,120]
[421897954,1778308690000,-1528.65,0.00041995,120]
[421897967,1778308690000,-2397.5,0.00041995,120]
[421897960,1778308690000,-2397.5,0.00041995,120]
[421897958,1778308690000,-1528.74,0.00041995,120]
[421897956,1778308690000,-1528.65,0.00041995,120]
[421897957,1778308690000,-1528.65,0.00041995,120]
[421897955,1778308690000,-1528.65,0.00041995,120]
[421897961,1778308690000,-2397.5,0.00041995,120]
[421897970,1778308690000,-2397.5,0.00041995,120]
[421897982,1778308690000,-2397.70939297,0.00041995,120]
[421897972,1778308690000,-2397.5,0.00041995,120]
[421897971,1778308690000,-2397.5,0.00041995,120]
[421897986,1778308690000,-669.18,0.00041995,120]
[421897984,1778308690000,-669.18,0.00041995,120]
[421897985,1778308690000,-669.18,0.00041995,120]
[421897983,1778308690000,-669.18,0.00041995,120]
[421897981,1778308690000,-2397.5,0.00041995,120]
[421897980,1778308690000,-2397.5,0.00041995,120]
[421897987,1778308690000,-669.18,0.00041995,120]
[421897977,1778308690000,-2397.5,0.00041995,120]
[421897978,1778308690000,-2397.5,0.00041995,120]
[421897976,1778308690000,-2397.5,0.00041995,120]
[421897973,1778308690000,-2397.5,0.00041995,120]
[421897974,1778308690000,-2397.5,0.00041995,120]
[421897975,1778308690000,-2397.5,0.00041995,120]
[421897969,1778308690000,-2397.5,0.00041995,120]
[421897979,1778308690000,-2397.5,0.00041995,120]
[421898000,1778308691000,-669.18,0.00041995,120]
[421897997,1778308691000,-669.18,0.00041995,120]
[421897999,1778308691000,-669.18,0.00041995,120]
[421897996,1778308691000,-669.18,0.00041995,120]
[421897998,1778308691000,-669.18,0.00041995,120]
[421897994,1778308691000,-669.18,0.00041995,120]
[421897992,1778308691000,-669.18,0.00041995,120]
[421897995,1778308691000,-669.18,0.00041995,120]
[421897990,1778308691000,-669.18,0.00041995,120]
[421897991,1778308691000,-669.18,0.00041995,120]
[421897989,1778308691000,-669.18,0.00041995,120]
[421897988,1778308691000,-669.18,0.00041995,120]
[421898002,1778308691000,-669.18,0.00041995,120]
[421897993,1778308691000,-669.18,0.00041995,120]
[421898001,1778308691000,-669.18,0.00041995,120]
[421898005,1778308691000,-669.18,0.00041995,120]
[421898014,1778308691000,-500.0,0.00041995,120]
[421898020,1778308691000,-1096.07,0.00041995,120]
[421898003,1778308691000,-669.18,0.00041995,120]
[421898019,1778308691000,-500.0,0.00041995,120]
[421898017,1778308691000,-524.37404458,0.00041995,120]
[421898018,1778308691000,-500.0,0.00041995,120]
[421898016,1778308691000,-500.0,0.00041995,120]
[421898015,1778308691000,-500.0,0.00041995,120]
[421898013,1778308691000,-500.0,0.00041995,120]
[421898010,1778308691000,-500.0,0.00041995,120]
[421898011,1778308691000,-500.0,0.00041995,120]
[421898009,1778308691000,-500.0,0.00041995,120]
[421898008,1778308691000,-500.0,0.00041995,120]
[421898007,1778308691000,-204965.29,0.00041995,30]
[421898006,1778308691000,-669.21394538,0.00041995,120]
[421898004,1778308691000,-669.18,0.00041995,120]
[421898012,1778308691000,-500.0,0.00041995,120]
[421898031,1778308692000,-1096.07,0.00041995,120]
[421898032,1778308692000,-1096.07,0.00041995,120]
[421898033,1778308692000,-1096.07,0.00041995,120]
[421898034,1778308692000,-1096.07,0.00041995,120]
[421898036,1778308692000,-1096.07,0.00041995,120]
[421898030,1778308692000,-1096.07,0.00041995,120]
[421898035,1778308692000,-1096.07,0.00041995,120]
[421898029,1778308692000,-1096.07,0.00041995,120]
[421898023,1778308692000,-1096.07,0.00041995,120]
[421898027,1778308692000,-1096.07,0.00041995,120]
[421898026,1778308692000,-1096.07,0.00041995,120]
[421898024,1778308692000,-1096.07,0.00041995,120]
[421898025,1778308692000,-1096.07,0.00041995,120]
[421898021,1778308692000,-1096.07,0.00041995,120]
[421898022,1778308692000,-1096.07,0.00041995,120]
[421898028,1778308692000,-1096.07,0.00041995,120]
[421898037,1778308692000,-1096.07,0.00041995,120]
[421898054,1778308692000,-500.0,0.00041995,120]
[421898040,1778308692000,-1096.07,0.00041995,120]
[421898038,1778308692000,-1096.07,0.00041995,120]
[421898055,1778308692000,-500.0,0.00041995,120]
[421898052,1778308692000,-153334.18299232,0.00041995,120]
[421898053,1778308692000,-15570.14667831,0.00041995,30]
[421898051,1778308692000,-592.87411686,0.00041995,120]
[421898050,1778308692000,-500.0,0.00041995,120]
[421898048,1778308692000,-566.3,0.00041995,120]
[421898049,1778308692000,-421.24648135,0.00041995,120]
[421898046,1778308692000,-500.0,0.00041995,120]
[421898045,1778308692000,-500.0,0.00041995,120]
[421898044,1778308692000,-500.0,0.00041995,120]
[421898043,1778308692000,-1096.07098346,0.00041995,120]
[421898041,1778308692000,-1096.07,0.00041995,120]
[421898042,1778308692000,-1096.07,0.00041995,120]
[421898039,1778308692000,-1096.07,0.00041995,120]
[421898047,1778308692000,-500.0,0.00041995,120]
[421898064,1778308693000,-609.11,0.00041995,120]
[421898069,1778308693000,-609.11,0.00041995,120]
[421898072,1778308693000,-609.11,0.00041995,120]
[421898068,1778308693000,-609.11,0.00041995,120]
[421898070,1778308693000,-609.11,0.00041995,120]
[421898067,1778308693000,-609.11,0.00041995,120]
[421898063,1778308693000,-609.11,0.00041995,120]
[421898056,1778308693000,-500.0,0.00041995,120]
[421898065,1778308693000,-609.11,0.00041995,120]
[421898061,1778308693000,-609.11,0.00041995,120]
[421898060,1778308693000,-289.92,0.00041995,120]
[421898059,1778308693000,-326617.24,0.00041995,30]
[421898058,1778308693000,-2059.86415199,0.00041995,120]
[421898057,1778308693000,-300.82,0.00041995,120]
[421898062,1778308693000,-609.11,0.00041995,120]
[421898075,1778308693000,-609.11,0.00041995,120]
[421898066,1778308693000,-609.11,0.00041995,120]
[421898071,1778308693000,-609.11,0.00041995,120]
[421898089,1778308693000,-500.0,0.00041995,120]
[421898088,1778308693000,-500.0,0.00041995,120]
[421898090,1778308693000,-500.0,0.00041995,120]
[421898087,1778308693000,-500.0,0.00041995,120]
[421898085,1778308693000,-535.6790011,0.00041995,120]
[421898086,1778308693000,-8000.0,0.00041995,30]
[421898084,1778308693000,-609.25793043,0.00041995,120]
[421898083,1778308693000,-609.11,0.00041995,120]
[421898073,1778308693000,-609.11,0.00041995,120]
[421898081,1778308693000,-609.11,0.00041995,120]
[421898080,1778308693000,-609.11,0.00041995,120]
[421898079,1778308693000,-609.11,0.00041995,120]
[421898078,1778308693000,-609.11,0.00041995,120]
[421898076,1778308693000,-609.11,0.00041995,120]
[421898077,1778308693000,-609.11,0.00041995,120]
[421898074,1778308693000,-609.11,0.00041995,120]
[421898082,1778308693000,-609.11,0.00041995,120]
[421898106,1778308694000,-1500.0,0.00041995,120]
[421898103,1778308694000,-1500.0,0.00041995,120]
[421898101,1778308694000,-1500.0,0.00041995,120]
[421898102,1778308694000,-1500.0,0.00041995,120]
[421898100,1778308694000,-1500.0,0.00041995,120]
[421898099,1778308694000,-499.77000037,0.00041995,120]
[421898098,1778308694000,-422.67543163,0.00041995,120]
[421898094,1778308694000,-353.80880897,0.00041995,120]
[421898095,1778308694000,-500.0,0.00041995,120]
[421898097,1778308694000,-500.0,0.00041995,120]
[421898105,1778308694000,-1500.0,0.00041995,120]
[421898093,1778308694000,-500.0,0.00041995,120]
[421898091,1778308694000,-500.0,0.00041995,120]
[421898092,1778308694000,-500.0,0.00041995,120]
[421898096,1778308694000,-500.0,0.00041995,120]
[421898107,1778308694000,-1500.0,0.00041995,120]
[421898104,1778308694000,-1500.0,0.00041995,120]
[421898109,1778308694000,-1500.0,0.00041995,120]
[421898125,1778308694000,-500.0,0.00041995,120]
[421898108,1778308694000,-1500.0,0.00041995,120]
[421898123,1778308694000,-1500.0,0.00041995,120]
[421898119,1778308694000,-1500.0,0.00041995,120]
[421898121,1778308694000,-1500.0,0.00041995,120]
[421898122,1778308694000,-1500.0,0.00041995,120]
[421898120,1778308694000,-1500.0,0.00041995,120]
[421898118,1778308694000,-1500.0,0.00041995,120]
[421898124,1778308694000,-500.0,0.00041995,120]
[421898117,1778308694000,-1500.0,0.00041995,120]
[421898114,1778308694000,-1500.0,0.00041995,120]
[421898115,1778308694000,-1500.0,0.00041995,120]
[421898112,1778308694000,-1500.0,0.00041995,120]
[421898113,1778308694000,-1500.0,0.00041995,120]
[421898110,1778308694000,-1500.0,0.00041995,120]
[421898111,1778308694000,-1500.0,0.00041995,120]
[421898116,1778308694000,-1500.0,0.00041995,120]
[421898140,1778308695000,-177.30379863,0.00041995,120]
[421898137,1778308695000,-262.6544409,0.00041995,120]
[421898136,1778308695000,-211.37590694,0.00041995,120]
[421898135,1778308695000,-500.0,0.00041995,120]
[421898133,1778308695000,-500.0,0.00041995,120]
[421898134,1778308695000,-500.0,0.00041995,120]
[421898128,1778308695000,-500.0,0.00041995,120]
[421898130,1778308695000,-500.0,0.00041995,120]
[421898131,1778308695000,-500.0,0.00041995,120]
[421898129,1778308695000,-500.0,0.00041995,120]
[421898126,1778308695000,-500.0,0.00041995,120]
[421898127,1778308695000,-500.0,0.00041995,120]
[421898139,1778308695000,-612.59841999,0.00041995,120]
[421898132,1778308695000,-500.0,0.00041995,120]
[421898141,1778308695000,-230.61655554,0.00041995,120]
[421898138,1778308695000,-333.26,0.00041995,120]
[421898144,1778308695000,-188.86416968,0.00041995,120]
[421898157,1778308695000,-166.29772894,0.00041995,120]
[421898155,1778308695000,-151.28326339,0.00041995,120]
[421898153,1778308695000,-157.51570741,0.00041995,120]
[421898154,1778308695000,-271.61153357,0.00041995,120]
[421898152,1778308695000,-500.0,0.00041995,120]
[421898151,1778308695000,-261.52921164,0.00041995,120]
[421898150,1778308695000,-280.09477487,0.00041995,120]
[421898143,1778308695000,-176.87250053,0.00041995,120]
[421898148,1778308695000,-236.17702742,0.00041995,120]
[421898146,1778308695000,-175.54182672,0.00041995,120]
[421898147,1778308695000,-380.03579334,0.00041995,120]
[421898145,1778308695000,-476.61912045,0.00041995,120]
[421898142,1778308695000,-188.30900527,0.00041995,120]
[421898156,1778308695000,-177.31942429,0.00041995,120]
[421898149,1778308695000,-155.85739508,0.00041995,120]
[421898171,1778308696000,-500.0,0.00041995,120]
[421898169,1778308696000,-154.7596736,0.00041995,120]
[421898170,1778308696000,-500.0,0.00041995,120]
[421898168,1778308696000,-500.0,0.00041995,120]
[421898167,1778308696000,-500.0,0.00041995,120]
[421898166,1778308696000,-500.0,0.00041995,120]
[421898162,1778308696000,-176.18807113,0.00041995,120]
[421898163,1778308696000,-291.8779664,0.00041995,120]
[421898164,1778308696000,-500.0,0.00041995,120]
[421898160,1778308696000,-366.41222681,0.00041995,120]
[421898161,1778308696000,-151.46844246,0.00041995,120]
[421898158,1778308696000,-164.17250617,0.00041995,120]
[421898173,1778308696000,-234.51206961,0.00041995,120]
[421898165,1778308696000,-500.0,0.00041995,120]
[421898159,1778308696000,-569.47008998,0.00041995,120]
[421898172,1778308696000,-500.0,0.00041995,120]
[421898176,1778308696000,-303.21524953,0.00041995,120]
[421898174,1778308696000,-177.94041409,0.00041995,120]
[421898187,1778308696000,-165.3127395,0.00041995,120]
[421898188,1778308696000,-471.30392858,0.00041995,120]
[421898186,1778308696000,-613.23024041,0.00041995,120]
[421898184,1778308696000,-209.66505016,0.00041995,120]
[421898185,1778308696000,-239.89642602,0.00041995,120]
[421898181,1778308696000,-4127.9664382,0.00041995,120]
[421898189,1778308696000,-163.30303241,0.00041995,120]
[421898182,1778308696000,-299.10310801,0.00041995,120]
[421898180,1778308696000,-208.74983338,0.00041995,120]
[421898178,1778308696000,-580.44213797,0.00041995,120]
[421898179,1778308696000,-162.48899595,0.00041995,120]
[421898177,1778308696000,-158.09028523,0.00041995,120]
[421898175,1778308696000,-569.4073,0.00041995,120]
[421898183,1778308696000,-257.21806553,0.00041995,120]
[421898199,1778308697000,-165.93179893,0.00041995,120]
[421898200,1778308697000,-355.76732206,0.00041995,120]
[421898201,1778308697000,-564.62877469,0.00041995,120]
[421898197,1778308697000,-164.02905853,0.00041995,120]
[421898198,1778308697000,-611.33382132,0.00041995,120]
[421898196,1778308697000,-153.2767327,0.00041995,120]
[421898194,1778308697000,-177.75425431,0.00041995,120]
[421898193,1778308697000,-202.46998423,0.00041995,120]
[421898191,1778308697000,-500.0,0.00041995,120]
[421898192,1778308697000,-500.0,0.00041995,120]
[421898190,1778308697000,-581.84632049,0.00041995,120]
[421898203,1778308697000,-277.095852,0.00041995,120]
[421898195,1778308697000,-162.18709399,0.00041995,120]
[421898202,1778308697000,-525.8903155,0.00041995,120]
[421898213,1778308697000,-500.0,0.00041995,120]
[421898205,1778308697000,-500.0,0.00041995,120]
[421898204,1778308697000,-202.36254848,0.00041995,60]
[421898219,1778308697000,-221.24290987,0.00041995,120]
[421898215,1778308697000,-500.0,0.00041995,120]
[421898217,1778308697000,-195.00366504,0.00041995,120]
[421898214,1778308697000,-649.6295992,0.00041995,120]
[421898218,1778308697000,-384.21030626,0.00041995,120]
[421898216,1778308697000,-209.5865,0.00041995,120]
[421898211,1778308697000,-409.16613776,0.00041995,120]
[421898210,1778308697000,-171.70019856,0.00041995,120]
[421898209,1778308697000,-178.14811857,0.00041995,120]
[421898208,1778308697000,-351.71882696,0.00041995,120]
[421898207,1778308697000,-177.4715508,0.00041995,120]
[421898206,1778308697000,-180.20483003,0.00041995,120]
[421898212,1778308697000,-500.0,0.00041995,120]
[421898229,1778308698000,-500.0,0.00041995,120]
[421898233,1778308698000,-228.036841,0.00041995,120]
[421898231,1778308698000,-201.27225693,0.00041995,120]
[421898232,1778308698000,-231.57524974,0.00041995,120]
[421898228,1778308698000,-500.0,0.00041995,120]
[421898230,1778308698000,-378.7958708,0.00041995,120]
[421898227,1778308698000,-430.20762269,0.00041995,120]
[421898220,1778308698000,-500.0,0.00041995,120]
[421898225,1778308698000,-297.22061548,0.00041995,120]
[421898223,1778308698000,-500.0,0.00041995,120]
[421898224,1778308698000,-183.79653741,0.00041995,120]
[421898221,1778308698000,-183.94220154,0.00041995,120]
[421898222,1778308698000,-174.01659298,0.00041995,120]
[421898235,1778308698000,-199.03239467,0.00041995,120]
[421898226,1778308698000,-177.75871181,0.00041995,120]
[421898237,1778308698000,-320.84,0.00041995,30]
[421898234,1778308698000,-429.17873725,0.00041995,120]
[421898239,1778308698000,-257.88989451,0.00041995,120]
[421898253,1778308698000,-609.70400718,0.00041995,120]
[421898236,1778308698000,-165.9208705,0.00041995,120]
[421898252,1778308698000,-159.88664176,0.00041995,120]
[421898251,1778308698000,-242.42190088,0.00041995,120]
[421898249,1778308698000,-581.91974914,0.00041995,120]
[421898248,1778308698000,-500.0,0.00041995,120]
[421898245,1778308698000,-179.43275313,0.00041995,120]
[421898247,1778308698000,-500.0,0.00041995,120]
[421898250,1778308698000,-180.90146197,0.00041995,120]
[421898244,1778308698000,-154.60524743,0.00041995,120]
[421898243,1778308698000,-413.40090507,0.00041995,120]
[421898241,1778308698000,-500.0,0.00041995,120]
[421898242,1778308698000,-532.3813,0.00041995,120]
[421898240,1778308698000,-500.0,0.00041995,120]
[421898238,1778308698000,-356.45412225,0.00041995,120]
[421898246,1778308698000,-171.94855486,0.00041995,120]
[421898263,1778308699000,-1006.46,0.00041995,120]
[421898269,1778308699000,-1006.46,0.00041995,120]
[421898267,1778308699000,-1006.46,0.00041995,120]
[421898266,1778308699000,-1006.46,0.00041995,120]
[421898268,1778308699000,-1006.46,0.00041995,120]
[421898264,1778308699000,-1006.46,0.00041995,120]
[421898265,1778308699000,-1006.46,0.00041995,120]
[421898262,1778308699000,-252.8,0.00041995,30]
[421898255,1778308699000,-176.24882736,0.00041995,120]
[421898259,1778308699000,-339.25365833,0.00041995,120]
[421898260,1778308699000,-379.0,0.00041995,120]
[421898258,1778308699000,-500.0,0.00041995,120]
[421898257,1778308699000,-162.27194974,0.00041995,120]
[421898256,1778308699000,-293.6985576,0.00041995,120]
[421898254,1778308699000,-285.18854035,0.00041995,120]
[421898270,1778308699000,-279.87446606,0.00041995,120]
[421898261,1778308699000,-208.97600061,0.00041995,120]
[421898272,1778308699000,-1006.46,0.00041995,120]
[421898288,1778308699000,-150.87290764,0.00041995,120]
[421898273,1778308699000,-156.48727122,0.00041995,120]
[421898271,1778308699000,-1006.46,0.00041995,120]
[421898291,1778308699000,-1006.59025746,0.00041995,120]
[421898289,1778308699000,-1006.46,0.00041995,120]
[421898290,1778308699000,-1006.46,0.00041995,120]
[421898287,1778308699000,-1006.46,0.00041995,120]
[421898284,1778308699000,-1006.46,0.00041995,120]
[421898282,1778308699000,-1006.46,0.00041995,120]
[421898283,1778308699000,-1006.46,0.00041995,120]
[421898285,1778308699000,-1006.46,0.00041995,120]
[421898280,1778308699000,-1006.46,0.00041995,120]
[421898279,1778308699000,-1006.46,0.00041995,120]
[421898278,1778308699000,-1006.46,0.00041995,120]
[421898277,1778308699000,-1006.46,0.00041995,120]
[421898276,1778308699000,-1006.46,0.00041995,120]
[421898275,1778308699000,-165.31626251,0.00041995,120]
[421898274,1778308699000,-1006.46,0.00041995,120]
[421898281,1778308699000,-1006.46,0.00041995,120]
[421898301,1778308700000,-576.61437099,0.00041995,120]
[421898306,1778308700000,-155.30319681,0.00041995,120]
[421898307,1778308700000,-217.53970089,0.00041995,120]
[421898305,1778308700000,-187.49415437,0.00041995,120]
[421898308,1778308700000,-1452.05,0.00041995,120]
[421898304,1778308700000,-500.0,0.00041995,120]
[421898303,1778308700000,-212.1677,0.00041995,120]
[421898302,1778308700000,-500.0,0.00041995,120]
[421898292,1778308700000,-227.50768581,0.00041995,120]
[421898299,1778308700000,-358.08238889,0.00041995,120]
[421898300,1778308700000,-360.85337359,0.00041995,120]
[421898297,1778308700000,-155.47593251,0.00041995,120]
[421898294,1778308700000,-160.62279486,0.00041995,120]
[421898296,1778308700000,-500.0,0.00041995,120]
[421898295,1778308700000,-500.0,0.00041995,120]
[421898293,1778308700000,-193.41104861,0.00041995,120]
[421898298,1778308700000,-339.93019654,0.00041995,120]
[421898310,1778308700000,-171.72867075,0.00041995,120]
[421898313,1778308700000,-500.0,0.00041995,120]
[421898309,1778308700000,-299.92021023,0.00041995,60]
[421898311,1778308700000,-182.55447201,0.00041995,120]
[421898328,1778308700000,-7142.33,0.00041995,30]
[421898327,1778308700000,-25295.92621,0.00041995,60]
[421898325,1778308700000,-183.52408307,0.00041995,120]
[421898324,1778308700000,-170.19351378,0.00041995,120]
[421898326,1778308700000,-182.65307603,0.00041995,120]
[421898323,1778308700000,-155.10044316,0.00041995,120]
[421898322,1778308700000,-176.59632432,0.00041995,120]
[421898319,1778308700000,-168.43274329,0.00041995,120]
[421898321,1778308700000,-156.22489995,0.00041995,120]
[421898318,1778308700000,-178.39203169,0.00041995,120]
[421898317,1778308700000,-157.23077418,0.00041995,120]
[421898316,1778308700000,-154.52267989,0.00041995,120]
[421898315,1778308700000,-152.78482391,0.00041995,120]
[421898314,1778308700000,-500.0,0.00041995,120]
[421898312,1778308700000,-190.07390358,0.00041995,120]
[421898320,1778308700000,-155.51977851,0.00041995,120]
[421898330,1778308701000,-170.9441446,0.00041995,120]
[421898344,1778308701000,-188.15595903,0.00041995,120]
[421898342,1778308701000,-164.24238363,0.00041995,120]
[421898340,1778308701000,-157.68636185,0.00041995,120]
[421898341,1778308701000,-159.22238028,0.00041995,120]
[421898338,1778308701000,-167.32845865,0.00041995,120]
[421898335,1778308701000,-169.32184184,0.00041995,120]
[421898334,1778308701000,-153.5342804,0.00041995,120]
[421898336,1778308701000,-154.52344845,0.00041995,120]
[421898331,1778308701000,-165.21413339,0.00041995,120]
[421898333,1778308701000,-153.02962048,0.00041995,60]